fUSD/lending_fUSD_20251103
["ID","MTS","AMOUNT","RATE_DAILY","PERIOD"]
[392929102,1762153355695,500.0,0.00030136,120]
[392929103,1762153356324,188.53221783,0.00030136,120]
[392929104,1762153356906,300.5375246,0.00030136,120]
[392929105,1762153357443,500.0,0.00030136,120]
[392929106,1762153357740,522.11302723,0.00030136,120]
[392929107,1762153358143,500.0,0.00030136,120]
[392929108,1762153358252,500.0,0.00030136,120]
[392929109,1762153360215,236.09894266,0.00030136,120]
[392929110,1762153360613,318.374649,0.00030136,120]
[392929111,1762153361413,246.14509885,0.00030136,120]
[392929112,1762153362459,416.37423104,0.00030136,120]
[392929113,1762153362562,500.0,0.00030136,120]
[392929114,1762153363111,326.48274955,0.00030136,120]
[392929115,1762153364388,491.45530046,0.00030136,120]
[392929116,1762153365014,321.26681563,0.00030136,120]
[392929117,1762153365182,500.0,0.00030136,120]
[392929118,1762153365275,300.27234144,0.00030136,120]
[392929119,1762153365618,500.0,0.00030136,120]
[392929120,1762153366201,289.68588663,0.00030136,120]
[392929121,1762153366994,421.50432333,0.00030136,120]
[392929122,1762153367066,157.03016614,0.00030136,120]
[392929123,1762153369008,500.0,0.00030136,120]
[392929124,1762153369679,500.0,0.00030136,120]
[392929125,1762153369781,404.64412651,0.00030136,120]
[392929126,1762153370654,392.21849783,0.00030136,120]
[392929127,1762153370760,163.36695361,0.00030136,120]
[392929128,1762153371582,455.77059441,0.00030136,120]
[392929129,1762153372412,283.19053993,0.00030136,120]
[392929130,1762153372668,500.0,0.00030136,120]
[392929131,1762153372743,1000.0,0.00030136,120]
[392929132,1762153373260,511.1887013,0.00030136,120]
[392929133,1762153373522,343.48294335,0.00030136,120]
[392929134,1762153375530,343.89535436,0.00030136,120]
[392929135,1762153376476,500.0,0.00030136,120]
[392929136,1762153376550,500.0,0.00030136,120]
[392929137,1762153377325,500.0,0.00030136,120]
[392929138,1762153377457,313.75465228,0.00030136,120]
[392929139,1762153379579,609.55917489,0.00030136,120]
[392929140,1762153379958,535.00254201,0.00030136,120]
[392929141,1762153380826,257.73423566,0.00030136,120]
[392929142,1762153381321,397.25562436,0.00030136,120]
[392929143,1762153381398,208.83587758,0.00030136,120]
[392929144,1762153381476,173.63309586,0.00030136,120]
[392929145,1762153381667,309.06665555,0.00030136,120]
[392929146,1762153382448,227.59967807,0.00030136,120]
[392929147,1762153382674,500.0,0.00014218,2]
[392929148,1762153382918,178.46001035,0.00030136,120]
[392929149,1762153383109,242.56045662,0.00030136,120]
[392929150,1762153383824,500.0,0.00030136,120]
[392929151,1762153384357,675.3,0.00030136,120]
[392929152,1762153384440,336.08013606,0.00030136,120]
[392929153,1762153384863,500.0,0.00030136,120]
[392929154,1762153384943,329.64347249,0.00030136,120]
[392929155,1762153385503,512.71840817,0.00030136,120]
[392929156,1762153386392,273.08675357,0.00030136,120]
[392929157,1762153387391,412.02593554,0.00030136,120]
[392929158,1762153388876,394.65402058,0.00030136,120]
[392929159,1762153389539,-195.0,0.00014325,2]
[392929160,1762153389561,-662.84514295,0.00014326,2]
[392929161,1762153389719,382.2607196,0.00030136,120]
[392929162,1762153389914,495.43484402,0.00030136,120]
[392929163,1762153390530,218.93647881,0.00030136,120]
[392929164,1762153391076,500.0,0.00030136,120]
[392929165,1762153391538,500.0,0.00030136,120]
[392929166,1762153391611,500.0,0.00030136,120]
[392929167,1762153391909,375.04551687,0.00030136,120]
[392929168,1762153392372,525.70110301,0.00030136,120]
[392929169,1762153392607,500.0,0.00030136,120]
[392929170,1762153392944,479.8649564,0.00030136,120]
[392929171,1762153393975,500.0,0.00030136,120]
[392929172,1762153394190,343.68311811,0.00030136,120]
[392929173,1762153396550,256.59629107,0.00030136,120]
[392929174,1762153397405,378.60418826,0.00030136,120]
[392929175,1762153398823,500.0,0.00030136,120]
[392929176,1762153398920,500.0,0.00030136,120]
[392929177,1762153400340,364.816006,0.000269,120]
[392929178,1762153400961,380.54700004,0.00030136,120]
[392929179,1762153402423,500.0,0.00030136,120]
[392929180,1762153402573,500.0,0.00030136,120]
[392929181,1762153402637,177.97031437,0.00030136,120]
[392929182,1762153402741,243.66092297,0.00030136,120]
[392929183,1762153404707,394.59671607,0.00030136,120]
[392929184,1762153405939,198.93745754,0.00030136,120]
[392929185,1762153406536,500.0,0.00030136,120]
[392929186,1762153409473,418.91653083,0.00030136,120]
[392929187,1762153409595,289.15620195,0.00030136,120]
[392929188,1762153410718,500.0,0.00030136,120]
[392929189,1762153410784,150.0,0.00029874,120]
[392929190,1762153411378,215.41540316,0.00030136,120]
[392929191,1762153411493,250.63492405,0.00030136,120]
[392929192,1762153412710,376.69426331,0.00030136,120]
[392929193,1762153413014,500.0,0.00030136,120]
[392929194,1762153413159,190.52349883,0.00030136,120]
[392929195,1762153413295,356.58439764,0.00030136,120]
[392929196,1762153414682,192.50599091,0.00030136,120]
[392929197,1762153415314,500.0,0.00030136,120]
[392929198,1762153416581,281.04480739,0.00030136,120]
[392929199,1762153417448,450.11009604,0.00030136,120]
[392929200,1762153417956,503.06941281,0.00030136,120]
[392929201,1762153418542,185.41072727,0.00030136,120]
[392929202,1762153419837,410.59060413,0.00030136,120]
[392929203,1762153419969,439.17263274,0.00030136,120]
[392929204,1762153420851,500.0,0.00030136,120]
[392929205,1762153421335,257.26795978,0.00030136,120]
[392929206,1762153422080,560.58433733,0.00030136,120]
[392929207,1762153422255,500.0,0.00030136,120]
[392929208,1762153423109,366.65261162,0.00030136,120]
[392929209,1762153423625,336.93111593,0.00030136,120]
[392929210,1762153424511,500.0,0.00030136,120]
[392929211,1762153424814,500.0,0.00030136,120]
[392929212,1762153426773,473.37909131,0.00030136,120]
[392929213,1762153428510,268.98588996,0.00030136,120]
[392929214,1762153429810,333.28585712,0.00030136,120]
[392929215,1762153429947,500.0,0.00030136,120]
[392929216,1762153431758,173.17820835,0.00030136,120]
[392929217,1762153431821,290.74811813,0.00030136,120]
[392929218,1762153432035,500.0,0.00030136,120]
[392929219,1762153432613,500.0,0.00030136,120]
[392929220,1762153434291,157.87610163,0.00030136,120]
[392929221,1762153434426,418.49720646,0.00030136,120]
[392929222,1762153434983,-354.19304193,0.00014326,2]
[392929223,1762153435208,468.89522323,0.00030136,120]
[392929224,1762153435502,500.0,0.00030136,120]
[392929225,1762153436737,209.64072195,0.00030136,120]
[392929226,1762153438853,491.40690512,0.00030136,120]
[392929227,1762153439046,-270.80428382,0.00014326,2]
[392929228,1762153439159,230.40297799,0.00030136,120]
[392929229,1762153440248,530.62835469,0.00030136,120]
[392929230,1762153442232,-316.05539556,0.00014326,2]
[392929231,1762153442610,500.0,0.00030136,120]
[392929232,1762153443213,690.76,0.00030136,120]
[392929233,1762153443291,265.97714115,0.00030136,120]
[392929234,1762153443366,579.78961995,0.00030136,120]
[392929235,1762153444442,260.3690599,0.00030136,120]
[392929236,1762153445145,244.22648986,0.00030136,120]
[392929237,1762153446231,500.0,0.00030136,120]
[392929238,1762153446340,292.73892227,0.00030136,120]
[392929239,1762153446587,196.4056153,0.00030136,120]
[392929240,1762153448077,150.0,0.00015,120]
[392929241,1762153448190,728.48,0.00030136,120]
[392929242,1762153450535,500.0,0.00030136,120]
[392929243,1762153453645,378.65228556,0.00030136,120]
[392929244,1762153453870,224.40090885,0.00030136,120]
[392929245,1762153454142,398.64016262,0.00030136,120]
[392929246,1762153456105,500.0,0.00030136,120]
[392929247,1762153457606,368.10260083,0.00030136,120]
[392929248,1762153457674,247.67784472,0.00030136,120]
[392929249,1762153458382,526.57,0.00030136,120]
[392929250,1762153458820,431.51551295,0.00030136,120]
[392929251,1762153459149,200.0,0.00030136,120]
[392929252,1762153460085,162.6902386,0.00030136,120]
[392929253,1762153460189,221.95404501,0.00030136,120]
[392929254,1762153461048,395.51069541,0.00030136,120]
[392929255,1762153461489,500.0,0.00030136,120]
[392929256,1762153461890,223.15552635,0.00030136,120]
[392929257,1762153462505,457.34213029,0.00030136,120]
[392929258,1762153462593,500.0,0.00030136,120]
[392929259,1762153462701,416.17796936,0.00030136,120]
[392929260,1762153464455,362.00039346,0.00030136,120]
[392929261,1762153464557,461.82268206,0.00030136,120]
[392929262,1762153464699,414.0397236,0.00030136,120]
[392929263,1762153466840,260.7193222,0.00030136,120]
[392929264,1762153466970,500.0,0.00030136,120]
[392929265,1762153467671,237.0251104,0.00030136,120]
[392929266,1762153468173,500.0,0.00030136,120]
[392929267,1762153468794,500.0,0.00030136,120]
[392929268,1762153469470,338.80334784,0.00030136,120]
[392929269,1762153469541,500.0,0.00030136,120]
[392929270,1762153469663,500.0,0.00030136,120]
[392929271,1762153472295,248.35291276,0.00030136,120]
[392929272,1762153472520,462.19029317,0.00030136,120]
[392929273,1762153472724,173.74415046,0.00030136,120]
[392929274,1762153474164,409.17949239,0.00030136,120]
[392929275,1762153475650,177.66591672,0.00030136,120]
[392929276,1762153476591,157.79059079,0.00030136,120]
[392929277,1762153476860,500.0,0.00030136,120]
[392929278,1762153477032,479.71710881,0.00030136,120]
[392929279,1762153478433,500.0,0.00030136,120]
[392929280,1762153478934,283.88003547,0.00030136,120]
[392929281,1762153479885,500.0,0.00030136,120]
[392929282,1762153479976,160.07310499,0.00030136,120]
[392929283,1762153480528,249.68852078,0.00030136,120]
[392929284,1762153482395,157.13660947,0.00030136,120]
[392929285,1762153482465,435.40570024,0.00030136,120]
[392929286,1762153482538,447.07440036,0.00030136,120]
[392929287,1762153482980,500.0,0.00030136,120]
[392929288,1762153484129,417.90882805,0.00030136,120]
[392929289,1762153484364,393.6597369,0.00030136,120]
[392929290,1762153484473,204.43,0.00010977,2]
[392929291,1762153484666,204.43,0.00012075,2]
[392929292,1762153484886,204.43,0.00013173,2]
[392929293,1762153485085,204.43,0.0001427,2]
[392929294,1762153485575,439.32552785,0.00030136,120]
[392929295,1762153486970,500.0,0.00030136,120]
[392929296,1762153487527,338.10212772,0.00030136,120]
[392929297,1762153487603,271.20710571,0.00030136,120]
[392929298,1762153488689,258.55608577,0.00030136,120]
[392929299,1762153489986,428.73154229,0.00030136,120]
[392929300,1762153491149,500.0,0.00030136,120]
[392929301,1762153491656,500.0,0.00030136,120]
[392929302,1762153493611,500.0,0.00030136,120]
[392929303,1762153494396,500.0,0.00030136,120]
[392929304,1762153495239,416.07949291,0.00030136,120]
[392929305,1762153496994,346.9445149,0.00030136,120]
[392929306,1762153499037,500.0,0.00030136,120]
[392929307,1762153499809,225.26502839,0.00030136,120]
[392929308,1762153500212,500.0,0.00030136,120]
[392929309,1762153501592,264.39744733,0.00030136,120]
[392929310,1762153501768,500.0,0.00030136,120]
[392929311,1762153503233,450.26861816,0.00030136,120]
[392929312,1762153503848,286.56715063,0.00030136,120]
[392929313,1762153504037,404.75961074,0.00030136,120]
[392929314,1762153505262,186.88091276,0.00030136,120]
[392929315,1762153506171,500.0,0.00030136,120]
[392929316,1762153508659,500.0,0.00030136,120]
[392929317,1762153508784,500.0,0.00030136,120]
[392929318,1762153509259,268.70741202,0.00030136,120]
[392929319,1762153509700,150.0,0.00013488,2]
[392929320,1762153509772,150.0,0.00013488,2]
[392929321,1762153509852,379.63425982,0.00030136,120]
[392929322,1762153509955,289.59287404,0.00013488,2]
[392929323,1762153510144,223.00311566,0.00030136,120]
[392929324,1762153511101,432.60996758,0.00030136,120]
[392929325,1762153511172,454.67570366,0.00030136,120]
[392929326,1762153511981,500.0,0.00030136,120]
[392929327,1762153512357,500.0,0.00030136,120]
[392929328,1762153513403,341.41550849,0.00030136,120]
[392929329,1762153513530,388.61201673,0.00030136,120]
[392929330,1762153513611,500.0,0.00030136,120]
[392929331,1762153513868,500.0,0.00030136,120]
[392929332,1762153514824,436.55086679,0.00030136,120]
[392929333,1762153515737,340.01272106,0.00030136,120]
[392929334,1762153516002,293.02647197,0.00030136,120]
[392929335,1762153516514,150.0,0.00013488,2]
[392929336,1762153516783,500.0,0.00030136,120]
[392929337,1762153517111,500.0,0.00030136,120]
[392929338,1762153517398,500.0,0.00030136,120]
[392929339,1762153517454,-180.86365927,0.00014326,2]
[392929340,1762153517926,270.39439454,0.00030136,120]
[392929341,1762153518251,500.0,0.00030136,120]
[392929342,1762153518482,229.9006667,0.00030136,120]
[392929343,1762153519078,295.93028517,0.00030136,120]
[392929344,1762153519263,359.9128381,0.00030136,120]
[392929345,1762153519533,-184.73967899,0.00014326,2]
[392929346,1762153520902,215.23037561,0.00030136,120]
[392929347,1762153521266,-166.31519297,0.00014326,2]
[392929348,1762153521411,500.0,0.00030136,120]
[392929349,1762153521793,252.81932635,0.00030136,120]
[392929350,1762153522642,151.8412202,0.00013488,2]
[392929351,1762153522720,478.91781136,0.00030136,120]
[392929352,1762153522826,483.7489196,0.00030136,120]
[392929353,1762153523785,-310.396238,0.00014326,2]
[392929354,1762153523949,487.80242821,0.00030136,120]
[392929355,1762153524029,444.28836495,0.00030136,120]
[392929356,1762153527265,902.15010625,0.00030136,120]
[392929357,1762153527495,500.0,0.00030136,120]
[392929358,1762153528403,500.0,0.00030136,120]
[392929359,1762153528436,-53.78736651,0.00014326,2]
[392929360,1762153528460,-180.43313349,0.00014326,2]
[392929361,1762153529175,500.0,0.00030136,120]
[392929362,1762153529746,150.0,0.00013488,2]
[392929363,1762153529865,150.0,0.00013488,2]
[392929364,1762153531125,500.0,0.00030136,120]
[392929365,1762153531528,-119.56686651,0.00014326,2]
[392929366,1762153531552,-160.88549427,0.00014334,2]
[392929367,1762153531838,500.0,0.00030136,120]
[392929368,1762153531951,287.80369383,0.00030136,120]
[392929369,1762153532281,500.0,0.00030136,120]
[392929370,1762153533386,500.0,0.00030136,120]
[392929371,1762153533690,500.0,0.00030136,120]
[392929372,1762153534184,176.31035264,0.00030136,120]
[392929373,1762153534643,262.07306207,0.00030136,120]
[392929374,1762153535833,482.50059276,0.00030136,120]
[392929375,1762153536317,500.0,0.00030136,120]
[392929376,1762153536661,502.69893508,0.00030136,120]
[392929377,1762153537570,500.73891711,0.00030136,120]
[392929378,1762153539197,297.11889189,0.00030136,120]
[392929379,1762153539339,500.0,0.00030136,120]
[392929380,1762153539545,193.93645343,0.00030136,120]
[392929381,1762153539873,500.0,0.00030136,120]
[392929382,1762153539949,187.25664909,0.00030136,120]
[392929383,1762153540555,150.0,0.00013729,2]
[392929384,1762153540818,500.0,0.00030136,120]
[392929385,1762153541419,626.21162872,0.00030136,120]
[392929386,1762153542065,500.0,0.00030136,120]
[392929387,1762153542881,171.44395524,0.00030136,120]
[392929388,1762153542965,414.58881521,0.00030136,120]
[392929389,1762153543266,526.02956593,0.00030136,120]
[392929390,1762153543339,500.0,0.00030136,120]
[392929391,1762153544765,165.80863683,0.00030136,120]
[392929392,1762153545546,500.0,0.00030136,120]
[392929393,1762153546084,391.86316951,0.00030136,120]
[392929394,1762153547445,500.0,0.00030136,120]
[392929395,1762153548172,339.23720427,0.00030136,120]
[392929396,1762153548304,509.37627547,0.00030136,120]
[392929397,1762153548669,379.1805595,0.00030136,120]
[392929398,1762153550014,499.08883211,0.00030136,120]
[392929399,1762153550452,500.0,0.00030136,120]
[392929400,1762153550801,500.0,0.00030136,120]
[392929401,1762153551302,500.0,0.00030136,120]
[392929402,1762153551698,434.83017241,0.00030136,120]
[392929403,1762153552944,500.0,0.00030136,120]
[392929404,1762153553854,500.0,0.00030136,120]
[392929405,1762153554082,500.0,0.00030136,120]
[392929406,1762153556409,500.0,0.00030136,120]
[392929407,1762153556712,491.33938162,0.00030136,120]
[392929408,1762153556872,436.8718763,0.00030136,120]
[392929409,1762153557172,500.0,0.00030136,120]
[392929410,1762153558476,218.44632982,0.00030136,120]
[392929411,1762153558901,500.0,0.00030136,120]
[392929412,1762153560369,306.16104347,0.00030136,120]
[392929413,1762153560890,369.87942303,0.00030136,120]
[392929414,1762153561356,500.0,0.00030136,120]
[392929415,1762153562271,500.0,0.00030136,120]
[392929416,1762153564305,500.0,0.00030136,120]
[392929417,1762153564387,500.0,0.00030136,120]
[392929418,1762153564697,500.0,0.00030136,120]
[392929419,1762153565465,500.0,0.00030136,120]
[392929420,1762153565638,505.48219829,0.00030136,120]
[392929421,1762153565721,325.10252639,0.00030136,120]
[392929422,1762153565959,500.0,0.00030136,120]
[392929423,1762153567774,187.04941601,0.00030136,120]
[392929424,1762153568415,500.0,0.00030136,120]
[392929425,1762153568744,270.91667111,0.00030136,120]
[392929426,1762153569269,487.78745279,0.00030136,120]
[392929427,1762153569350,204.02448484,0.00030136,120]
[392929428,1762153569671,-197.16952092,0.00014334,2]
[392929429,1762153569864,184.79605954,0.00030136,120]
[392929430,1762153571217,282.53803353,0.00030136,120]
[392929431,1762153573047,500.0,0.00030136,120]
[392929432,1762153573116,-18.00488653,0.00014334,2]
[392929433,1762153573153,-133.89203496,0.00014342,2]
[392929434,1762153574210,234.19019338,0.00030136,120]
[392929435,1762153575344,644.71594594,0.00030136,120]
[392929436,1762153576534,500.0,0.00030136,120]
[392929437,1762153577798,500.0,0.00030136,120]
[392929438,1762153577953,500.0,0.00030136,120]
[392929439,1762153581092,500.0,0.00030136,120]
[392929440,1762153581302,500.0,0.00030136,120]
[392929441,1762153581409,309.19007498,0.00030136,120]
[392929442,1762153581821,500.0,0.00030136,120]
[392929443,1762153581909,500.0,0.00030136,120]
[392929444,1762153582209,500.0,0.00030136,120]
[392929445,1762153582947,500.0,0.00030136,120]
[392929446,1762153584947,197.32338526,0.00030136,120]
[392929447,1762153585481,500.0,0.00030136,120]
[392929448,1762153586191,500.0,0.00030136,120]
[392929449,1762153586405,482.76006116,0.00030136,120]
[392929450,1762153587837,510.45150947,0.00030136,120]
[392929451,1762153587979,291.32170263,0.00030136,120]
[392929452,1762153588518,355.69926479,0.00030136,120]
[392929453,1762153589896,272.57256299,0.00030136,120]
[392929454,1762153590210,500.0,0.00030136,120]
[392929455,1762153590371,419.27801289,0.00030136,120]
[392929456,1762153593496,500.0,0.00030136,120]
[392929457,1762153593752,290.2785528,0.00030136,120]
[392929458,1762153594070,443.69213741,0.00030136,120]
[392929459,1762153597240,314.69076501,0.00030136,120]
[392929460,1762153597295,8658.57590576,0.00013773,2]
[392929461,1762153597332,10000.01,0.00013773,2]
[392929462,1762153597368,10000.01,0.00013773,2]
[392929463,1762153597405,10000.01,0.00013773,2]
[392929464,1762153597439,10000.01,0.00013773,2]
[392929465,1762153597473,10000.01,0.00013773,2]
[392929466,1762153597507,10000.01,0.00013773,2]
[392929467,1762153597539,10000.01,0.00013773,2]
[392929468,1762153597565,15000.0,0.00013773,2]
[392929469,1762153597592,9842.13409424,0.00013773,2]
[392929470,1762153597687,500.0,0.00030136,120]
[392929471,1762153597802,186.31142412,0.00030136,120]
[392929472,1762153598320,500.0,0.00030136,120]
[392929473,1762153599497,500.0,0.00030136,120]
[392929474,1762153600192,257.30379253,0.00030136,120]
[392929475,1762153600298,179.46601023,0.00030136,120]
[392929476,1762153601022,500.0,0.00030136,120]
[392929477,1762153602868,357.21597613,0.00030136,120]
[392929478,1762153603613,352.6252967,0.00030136,120]
[392929479,1762153604635,500.0,0.00030136,120]
[392929480,1762153604725,461.37958382,0.00030136,120]
[392929481,1762153606017,447.92322513,0.00030136,120]
[392929482,1762153606279,500.0,0.00030136,120]
[392929483,1762153607112,328.38573607,0.00030136,120]
[392929484,1762153607762,500.0,0.00030136,120]
[392929485,1762153609369,500.0,0.00030136,120]
[392929486,1762153609851,238.55015691,0.00030136,120]
[392929487,1762153615995,500.0,0.00030136,120]
[392929488,1762153618818,500.0,0.00030136,120]
[392929489,1762153620009,500.0,0.00030136,120]
[392929490,1762153620552,227.81164911,0.00030136,120]
[392929491,1762153620975,211.00837791,0.00030136,120]
[392929492,1762153621429,316.31067773,0.00030136,120]
[392929493,1762153622694,486.22662369,0.00030136,120]
[392929494,1762153622867,500.0,0.00030136,120]
[392929495,1762153623221,443.61441259,0.00030136,120]
[392929496,1762153624079,500.0,0.00030136,120]
[392929497,1762153624530,245.92471802,0.00030136,120]
[392929498,1762153624748,500.0,0.00030136,120]
[392929499,1762153624969,196.22787826,0.00030136,120]
[392929500,1762153625118,388.32469813,0.00030136,120]
[392929501,1762153626444,459.03870927,0.00030136,120]
[392929502,1762153627896,500.0,0.00030136,120]
[392929503,1762153628014,274.16683264,0.00030136,120]
[392929504,1762153628118,309.40946838,0.00030136,120]
[392929505,1762153629445,262.91178022,0.00030136,120]
[392929506,1762153629517,498.69556497,0.00030136,120]
[392929507,1762153629635,240.22528155,0.00030136,120]
[392929508,1762153631206,500.0,0.00030136,120]
[392929509,1762153631769,500.0,0.00030136,120]
[392929510,1762153633191,261.21979086,0.00030136,120]
[392929511,1762153634609,456.59313448,0.00030136,120]
[392929512,1762153634681,500.0,0.00030136,120]
[392929513,1762153635867,500.0,0.00030136,120]
[392929514,1762153636159,500.0,0.00030136,120]
[392929515,1762153636448,300.42239697,0.00030136,120]
[392929516,1762153637593,374.66716002,0.00030136,120]
[392929517,1762153638315,338.5915094,0.00030136,120]
[392929518,1762153638503,281.94661719,0.00030136,120]
[392929519,1762153639998,437.10364227,0.00030136,120]
[392929520,1762153641092,256.17096602,0.00030136,120]
[392929521,1762153641619,500.0,0.00030136,120]
[392929522,1762153642874,150.0,0.00015,120]
[392929523,1762153643514,500.0,0.00030136,120]
[392929524,1762153643593,187.48580754,0.00030136,120]
[392929525,1762153644672,-218.69217989,0.00014338,2]
[392929526,1762153645240,500.0,0.00030136,120]
[392929527,1762153645727,404.75932128,0.00030136,120]
[392929528,1762153646221,500.0,0.00030136,120]
[392929529,1762153646296,-81.30782011,0.00014338,2]
[392929530,1762153646319,-113.69217989,0.00014342,2]
[392929531,1762153648631,500.0,0.00030136,120]
[392929532,1762153648979,500.0,0.00030136,120]
[392929533,1762153649198,500.0,0.00030136,120]
[392929534,1762153650178,500.0,0.00030136,120]
[392929535,1762153650554,257.65874792,0.00030136,120]
[392929536,1762153651236,500.0,0.00030136,120]
[392929537,1762153651524,500.0,0.00030136,120]
[392929550,1762153652363,500.0,0.00030136,120]
[392929553,1762153653719,500.0,0.00030136,120]
[392929554,1762153653808,482.24167658,0.00030136,120]
[392929555,1762153653882,307.20288812,0.0003013,120]
[392929556,1762153655267,243.03495532,0.00030136,120]
[392929557,1762153656307,500.0,0.00030136,120]
[392929558,1762153656680,500.0,0.00030136,120]
[392929559,1762153657088,494.29329967,0.00030136,120]
[392929560,1762153657161,655.33,0.00030136,120]
[392929561,1762153659587,500.0,0.00030136,120]
[392929562,1762153660753,216.2215772,0.00030136,120]
[392929563,1762153661772,500.0,0.00030136,120]
[392929564,1762153662048,500.0,0.00030136,120]
[392929565,1762153662569,293.75533925,0.00030136,120]
[392929566,1762153665617,174.49791988,0.00030136,120]
[392929567,1762153665869,182.80809613,0.00030136,120]
[392929568,1762153666170,539.87968452,0.00030136,120]
[392929569,1762153667516,376.72434381,0.00030136,120]
[392929570,1762153668597,626.02,0.00030136,120]
[392929571,1762153668685,227.69328535,0.00030136,120]
[392929572,1762153669383,190.14604796,0.00030136,120]
[392929573,1762153669789,500.0,0.00030136,120]
[392929574,1762153669869,526.54,0.00030136,120]
[392929575,1762153670763,463.17505538,0.00030136,120]
[392929576,1762153674990,500.0,0.00030136,120]
[392929577,1762153675181,-14.35652599,0.00014342,2]
[392929578,1762153675206,-195.0,0.00014362,2]
[392929579,1762153675230,-278.85363718,0.00014365,2]
[392929580,1762153675416,500.0,0.00030136,120]
[392929581,1762153675516,419.53880758,0.00030136,120]
[392929582,1762153675688,237.95492224,0.00030136,120]
[392929583,1762153677894,500.0,0.00030136,120]
[392929584,1762153679561,500.0,0.00030136,120]
[392929585,1762153681270,420.40781733,0.00030136,120]
[392929586,1762153682459,500.0,0.00030136,120]
[392929587,1762153683133,439.37387131,0.00030136,120]
[392929588,1762153684157,170.24109434,0.00030136,120]
[392929589,1762153685321,500.0,0.00030136,120]
[392929590,1762153686080,500.0,0.00030136,120]
[392929591,1762153686173,441.26169758,0.00030136,120]
[392929592,1762153687314,500.0,0.00030136,120]
[392929593,1762153687709,500.0,0.00030136,120]
[392929594,1762153688266,511.86017445,0.00030136,120]
[392929595,1762153689174,500.0,0.00030136,120]
[392929596,1762153689362,283.89434967,0.00030136,120]
[392929597,1762153690769,10000.01,0.00013785,2]
[392929598,1762153690796,4093.63,0.00013785,2]
[392929599,1762153691395,563.22,0.00030136,120]
[392929600,1762153691832,500.0,0.00030136,120]
[392929601,1762153693024,334.47996644,0.00030136,120]
[392929602,1762153695319,500.0,0.00030136,120]
[392929603,1762153696349,446.61407135,0.00030136,120]
[392929604,1762153700347,232.43116324,0.00030136,120]
[392929605,1762153701603,349.94673101,0.00030136,120]
[392929606,1762153702383,500.0,0.00030136,120]
[392929607,1762153703521,232.76578468,0.00030136,120]
[392929608,1762153704291,1028.86,0.00030136,120]
[392929609,1762153704721,427.815216,0.00030136,120]
[392929610,1762153705163,576.09895137,0.00030136,120]
[392929611,1762153706333,228.15932238,0.00030136,120]
[392929612,1762153706918,611.78,0.00030136,120]
[392929613,1762153707116,500.0,0.00030136,120]
[392929614,1762153707919,154.85600301,0.00030136,120]
[392929615,1762153708155,504.74883493,0.00030136,120]